bitfinex-derivatives/quotes_ETHF0:USTF0_20240917
["timestamp","ask_amount","ask_price","bid_price","bid_amount"]
[1726614799503,2.79525621,2333.4,2333.3,0.42847]
[1726614799810,3.22369621,2333.5,2333.3,0.42847]
[1726614800007,3.22369621,2333.5,2333.4,0.4242]
[1726614800200,2.79525621,2333.5,2333.4,0.85265]
[1726614800400,2.79525621,2333.6,2333.5,0.42843]
[1726614800604,3.22365621,2333.7,2333.5,2.04873]
[1726614800906,3.22365621,2333.7,2333.6,0.4233]
[1726614801699,0.4284,2333.7,2333.6,0.4233]
[1726614801895,3.22365621,2333.7,2333.6,0.4233]
[1726614802503,0.4284,2333.7,2333.6,0.4233]
[1726614804101,0.4284,2333.7,2333.6,1.6533]
[1726614804499,2.79525621,2333.8,2333.6,2.08171]
[1726614804704,3.22364621,2333.8,2333.6,1.6533]
[1726614805005,0.42839,2333.7,2333.6,1.6533]
[1726614806409,3.22363621,2333.8,2333.6,2.0817]
[1726614806613,0.42836,2333.9,2333.7,4.86619]
[1726614806914,0.42836,2333.9,2333.8,0.4178]
[1726614808610,3.22361621,2333.9,2333.8,0.4178]
[1726614809109,0.42836,2333.9,2333.8,0.4178]
[1726614809316,0.42839,2333.7,2333.6,0.4233]
[1726614810118,0.42839,2333.7,2333.6,4.7081]
[1726614810307,0.42839,2333.7,2333.6,0.4233]
[1726614813518,0.42839,2333.7,2333.6,4.7081]
[1726614815316,0.42839,2333.7,2333.6,0.4233]
[1726614815721,0.42839,2333.7,2333.6,4.7081]
[1726614816815,0.42839,2333.7,2333.6,0.4233]
[1726614817014,0.42839,2333.7,2333.6,4.7081]
[1726614817214,0.42839,2333.7,2333.6,0.4233]
[1726614817520,0.42839,2333.7,2333.6,4.7081]
[1726614817721,0.42839,2333.7,2333.6,0.4233]
[1726614822022,0.42839,2333.7,2333.6,0.85171]
[1726614822224,0.42839,2333.7,2333.6,0.4233]
[1726614824428,0.4273,2333.9,2333.6,1.6533]
[1726614824627,0.42837,2333.8,2333.6,1.6533]
[1726614824824,0.42837,2333.8,2333.6,2.08171]
[1726614825121,0.42838,2333.8,2333.6,1.6533]
[1726614825327,0.42838,2333.8,2333.6,2.0817]
[1726614826430,0.42838,2333.8,2333.7,3.2078]
[1726614826825,0.42838,2333.8,2333.6,2.0817]
[1726614827023,0.42839,2333.7,2333.6,1.6533]
[1726614828230,0.42838,2333.8,2333.6,2.0817]
[1726614831831,0.42838,2333.8,2333.6,1.6533]
[1726614832023,0.42838,2333.8,2333.6,2.0817]
[1726614833223,0.42839,2333.7,2333.6,0.4233]
[1726614833823,0.42841,2333.6,2333.5,4.01]
[1726614834020,0.42841,2333.6,2333.5,0.3903]
[1726614834224,0.42845,2333.4,2333.3,0.4029]
[1726614850348,0.84585,2333.4,2333.3,0.4029]
[1726614851746,0.84585,2333.4,2333.2,3.6062]
[1726614851747,0.42847,2333.3,2333.2,3.6062]
[1726614852047,0.42848,2333.2,2333.1,0.3878]
[1726614853449,0.4285,2333.1,2333.0,0.3864]
[1726614853844,3.22375621,2333.2,2333.0,1.6164]
[1726614854039,3.60245621,2333.3,2333.0,1.6164]
[1726614854248,0.42849,2333.2,2333.0,1.6164]
[1726614854744,0.42849,2333.2,2333.1,3.2078]
[1726614855847,0.42848,2333.3,2333.1,3.2078]
[1726614856046,0.42847,2333.3,2333.2,1.6308]
[1726614856854,0.42846,2333.4,2333.2,1.6308]
[1726614857046,0.42846,2333.4,2333.3,0.3969]
[1726614857350,0.42846,2333.4,2333.3,0.807]
[1726614862747,3.22371621,2333.4,2333.3,0.807]
[1726614862954,3.62981621,2333.4,2333.3,0.4101]
[1726614871257,0.42848,2333.2,2333.1,0.4005]
[1726614871458,1.4997,2333.2,2333.1,0.4005]
[1726614872354,0.42848,2333.2,2333.1,0.4005]
[1726614872865,2.79200107,2333.4,2333.1,3.6083]
[1726614873158,0.42848,2333.2,2333.1,3.6083]
[1726614873357,0.42848,2333.3,2333.2,0.4004]
[1726614873548,0.42848,2333.3,2333.2,1.6304]
[1726614875259,0.42848,2333.3,2333.2,0.4004]
[1726614876758,2.79200107,2333.4,2333.2,0.4004]
[1726614876964,3.22045107,2333.4,2333.3,0.4151]
[1726614880564,3.22406075,2333.4,2333.3,0.4151]
[1726614884273,0.42845,2333.4,2333.3,0.4151]
[1726614884470,3.22433922,2333.4,2333.3,0.4151]
[1726614885577,0.42845,2333.4,2333.3,0.4151]
[1726614885774,3.22446237,2333.4,2333.3,0.4151]
[1726614886275,3.22452193,2333.4,2333.3,0.4151]
[1726614886974,0.42845,2333.4,2333.3,0.4151]
[1726614892391,1.49958,2333.4,2333.3,0.4151]
[1726614898589,0.42847,2333.3,2333.2,0.4004]
[1726614899484,3.22531074,2333.3,2333.2,0.4004]
[1726614899888,3.22529481,2333.3,2333.2,0.4004]
[1726614900083,0.42847,2333.3,2333.2,0.4004]
[1726614900284,0.42847,2333.3,2333.2,0.94341819]
[1726614900285,3.22535154,2333.3,2333.2,0.94341819]
[1726614900587,0.42852,2333.0,2332.9,1.12214049]
[1726614900795,1.07135,2332.9,2332.7,1.53424049]
[1726614900984,0.42856,2332.8,2332.7,1.53424049]
[1726614901183,0.42856,2332.8,2332.7,0.95518146]
[1726614902390,0.42856,2332.8,2332.7,0.4121]
[1726614909797,0.42854,2332.9,2332.7,2.07067]
[1726614910098,0.42854,2332.9,2332.8,3.2078]
[1726614910297,0.42853,2333.0,2332.8,3.63636]
[1726614910496,2.79669049,2333.3,2332.9,6.3435]
[1726614910695,6.95169049,2333.4,2333.2,1.23]
[1726614910891,4.58346,2333.4,2333.3,1.2124]
[1726614915194,4.58346,2333.4,2333.3,1.64087]
[1726614915195,4.155,2333.4,2333.3,1.64087]
[1726614915601,0.42844,2333.5,2333.3,1.64087]
[1726614915806,0.42844,2333.5,2333.4,3.2078]
[1726614916008,0.42844,2333.5,2333.4,4.4378]
[1726614917401,2.79669049,2333.7,2333.4,8.7234]
[1726614917606,2.79669049,2333.9,2333.6,1.23]
[1726614917806,0.42837,2333.9,2333.7,1.2315]
[1726614918106,0.42837,2333.9,2333.7,1.65988]
[1726614918607,2.79669049,2334.1,2333.8,1.23]
[1726614918801,3.22502049,2334.1,2333.8,1.65836]
[1726614919203,0.42834,2334.0,2333.8,1.65836]
[1726614920113,0.42833,2334.1,2333.8,1.65836]
[1726614920303,3.5973,2334.2,2333.8,1.65836]
[1726614920804,3.2078,2334.2,2334.0,1.23]
[1726614921001,3.6361,2334.2,2334.1,1.2156]
[1726614921205,0.4046,2334.4,2334.1,2.87392]
[1726614921206,0.42827,2334.4,2334.1,2.87392]
[1726614921506,0.42827,2334.4,2334.3,1.23]
[1726614921899,2.79669049,2334.6,2334.3,4.4378]
[1726614921900,0.42823,2334.6,2334.3,4.4378]
[1726614922101,0.83982,2334.7,2334.5,1.23]
[1726614922310,0.42823,2334.6,2334.5,1.23]
[1726614923608,0.42823,2334.6,2334.3,4.4378]
[1726614924505,0.42825,2334.5,2334.3,3.2078]
[1726614924709,0.42826,2334.4,2334.3,3.2078]
[1726614925006,0.42824,2334.6,2334.3,3.2078]
[1726614925212,0.42824,2334.6,2334.3,4.4378]
[1726614926801,0.42823,2334.6,2334.3,4.4378]
[1726614927010,0.42825,2334.5,2334.3,4.4378]
[1726614929011,0.42826,2334.4,2334.3,3.2078]
[1726614929899,0.42826,2334.4,2334.1,1.2156]
[1726614929900,0.4283,2334.2,2334.1,0.8175]
[1726614930105,1.6583,2334.2,2334.1,0.8175]
[1726614930300,1.6583,2334.2,2333.5,3.2078]
[1726614930301,5.514,2334.2,2333.5,3.2078]
[1726614930509,5.514,2334.2,2333.6,0.4284]
[1726614930510,0.42836,2333.9,2333.6,0.4284]
[1726614930703,0.42836,2333.9,2333.6,2.0868]
[1726614932009,0.42837,2333.8,2333.6,0.8568]
[1726614932416,0.42837,2333.8,2333.6,0.4284]
[1726614932716,0.42839,2333.8,2333.6,0.4284]
[1726614933409,0.4086,2334.0,2333.6,0.4284]
[1726614933410,0.42839,2333.7,2333.6,0.4284]
[1726614933614,3.0786,2334.0,2333.6,0.4284]
[1726614933615,0.42839,2333.8,2333.6,0.4284]
[1726614933810,0.85097,2333.9,2333.6,0.85681]
[1726614935704,0.42837,2333.9,2333.6,0.85681]
[1726614936412,0.42837,2333.8,2333.6,0.85681]
[1726614937928,0.42837,2333.9,2333.6,0.85681]
[1726614938924,0.42837,2333.8,2333.6,0.85681]
[1726614944828,0.42837,2333.9,2333.7,0.42839]
[1726614945011,0.42837,2333.8,2333.6,0.8568]
[1726614945218,0.42837,2333.8,2333.7,0.42839]
[1726614945521,0.42837,2333.8,2333.6,0.8568]
[1726614948619,0.42837,2333.8,2333.7,0.42839]
[1726614949326,0.42837,2333.8,2333.6,0.8568]
[1726614950520,0.4086,2334.0,2333.7,0.42838]
[1726614950729,0.42836,2333.9,2333.8,0.3983]
[1726614951827,0.42836,2333.9,2333.8,0.8191]
[1726614954126,1.4934,2334.1,2333.8,0.8191]
[1726614954127,0.42833,2334.1,2333.9,0.42836]
[1726614954327,0.42832,2334.1,2334.0,0.4098]
[1726614955526,0.42836,2333.9,2333.8,1.24747]
[1726614956529,0.42835,2334.0,2333.8,1.24747]
[1726614957227,0.42836,2333.9,2333.8,1.24747]
[1726614957628,1.65836,2333.9,2333.8,0.3983]
[1726614957830,1.23,2333.9,2333.6,1.2628]
[1726614958033,0.42839,2333.7,2333.6,1.6628]
[1726614959639,0.42838,2333.8,2333.6,1.6628]
[1726614959930,0.42839,2333.7,2333.6,1.6628]
[1726614960732,0.42839,2333.8,2333.6,1.6628]
[1726614961034,0.3862,2333.9,2333.7,0.42839]
[1726614961330,0.42836,2333.9,2333.7,0.42839]
[1726614961529,0.42837,2333.8,2333.6,2.8928]
[1726614961722,0.42837,2333.9,2333.7,0.42839]
[1726614962238,0.42837,2333.8,2333.7,0.42839]
[1726614962442,0.4096,2334.0,2333.7,1.65839]
[1726614962443,0.42837,2333.9,2333.7,1.65839]
[1726614967033,0.42834,2334.0,2333.7,1.23]
[1726614967225,0.42833,2334.1,2333.9,0.42834]
[1726614967432,0.42833,2334.1,2334.0,1.247]
[1726614969342,0.42833,2334.1,2334.0,2.90534]
[1726614970337,0.42833,2334.1,2334.0,2.477]
[1726614973937,2.79669049,2334.2,2334.1,0.42832]
[1726614974141,2.79669049,2334.2,2334.1,4.1789011]
[1726614974330,3.78255745,2334.5,2334.1,12.03667554]
[1726614974331,0.42825,2334.5,2334.1,12.03667554]
[1726614974539,0.42825,2334.5,2334.3,1.65827]
[1726614974837,0.42825,2334.5,2334.4,0.8136]
[1726614975029,0.42825,2334.5,2334.4,1.2141]
[1726614975643,0.42825,2334.5,2334.4,4.4219]
[1726614976341,0.42825,2334.5,2334.4,1.2141]
[1726614977751,1.65825,2334.5,2334.4,0.8195]
[1726614977936,5.514,2334.5,2334.1,4.89101074]
[1726614978131,0.42829,2334.3,2334.1,7.35592074]
[1726614979352,0.42829,2334.3,2334.1,6.92761074]
[1726614979545,0.42829,2334.3,2334.1,5.67272]
[1726614982347,0.42828,2334.4,2334.2,0.4283]
[1726614982649,1.6162,2334.6,2334.1,5.6727]
[1726614983045,0.42828,2334.3,2334.1,5.6727]
[1726614984238,0.4283,2334.3,2334.1,5.6727]
[1726614985047,0.4283,2334.2,2334.1,5.6727]
[1726614985247,0.4283,2334.2,2334.1,5.2444]
[1726614985440,0.42829,2334.3,2334.1,5.67271]
[1726614989149,0.42829,2334.3,2334.2,3.2078]
[1726614989449,0.42827,2334.4,2334.3,0.42828]
[1726614992449,4.155,2334.8,2334.5,0.42824]
[1726614992645,0.42822,2334.7,2334.6,1.2484]
[1726614994152,0.42822,2334.7,2334.6,0.8337]
[1726614994153,1.49875,2334.7,2334.6,0.8337]
[1726614994355,1.91305,2334.7,2334.6,0.8337]
[1726614994852,0.84252,2334.7,2334.6,0.8337]
[1726614995048,0.84252,2334.7,2334.3,0.83967]
[1726614995253,0.42825,2334.5,2334.4,0.4245]
[1726614997965,0.42825,2334.5,2334.4,2.08276]
[1726614999159,1.8886,2335.0,2334.6,0.42822]
[1726614999460,1.8886,2335.0,2334.5,4.4378]
[1726614999461,0.42823,2334.6,2334.5,4.4378]
[1726614999760,0.42823,2334.6,2334.5,1.23]
[1726615000463,0.42825,2334.5,2334.4,0.4245]
[1726615000668,0.42826,2334.4,2334.3,1.25478]
[1726615000860,0.42826,2334.4,2334.3,0.8265]
[1726615001663,1.49893,2334.4,2334.3,0.4151]
[1726615001873,0.42832,2334.1,2334.0,0.4133]
[1726615002064,0.42832,2334.1,2334.0,3.2078]
[1726615003265,0.42832,2334.1,2334.0,4.4378]
[1726615004169,0.42831,2334.2,2334.0,4.86613]
[1726615004461,0.42831,2334.2,2334.1,1.6317]
[1726615004963,0.42828,2334.4,2334.1,2.06001]
[1726615005169,0.42828,2334.4,2334.2,2.0207]
[1726615005370,0.42828,2334.3,2334.2,2.0207]
[1726615006266,0.42828,2334.3,2334.2,0.7907]
[1726615006462,0.8138,2334.5,2334.1,1.23]
[1726615006463,0.4283,2334.2,2334.1,1.23]
[1726615006670,0.42832,2334.1,2334.0,3.2078]
[1726615006965,0.84512,2334.1,2334.0,3.2078]
[1726615007370,0.42832,2334.1,2334.0,3.2078]
[1726615012374,0.85402,2334.1,2334.0,3.2078]
[1726615012576,1.92482,2334.1,2334.0,3.2078]
[1726615015270,0.42834,2334.0,2333.9,0.8543]
[1726615017973,0.42834,2334.0,2333.9,2.0843]
[1726615022580,0.42834,2334.0,2333.8,3.5961]
[1726615022581,0.42836,2333.9,2333.8,3.5961]
[1726615022880,0.81766,2333.9,2333.8,3.2078]
[1726615024585,0.42836,2333.9,2333.8,3.2078]
[1726615025574,0.42836,2333.9,2333.8,4.4378]
[1726615026181,0.42836,2333.9,2333.8,1.23]
[1726615027996,0.42836,2333.9,2333.8,1.65837]
[1726615028188,3.2078,2334.3,2333.8,4.4378]
[1726615028383,0.42832,2334.1,2334.0,1.23]
[1726615029088,0.42832,2334.1,2334.0,1.6443]
[1726615032085,0.42832,2334.1,2334.0,0.4143]
[1726615032284,0.42834,2334.0,2333.9,0.3878]
[1726615033684,0.42834,2334.0,2333.9,1.6178]
[1726615034689,0.42833,2334.1,2333.9,2.04616]
[1726615038701,0.42834,2334.0,2333.9,1.6178]
[1726615039704,0.42834,2334.0,2333.9,2.04616]
[1726615040193,0.42833,2334.1,2333.9,2.04616]
[1726615040587,1.07071,2334.3,2333.9,2.04616]
[1726615041591,0.42834,2334.0,2333.9,2.04616]
[1726615042796,0.42834,2334.0,2333.9,2.45076]
[1726615046395,0.42834,2334.0,2333.9,2.99357867]
[1726615046904,0.42834,2334.0,2333.9,2.45076]
[1726615047098,0.42834,2334.0,2333.9,2.9935868]
[1726615049099,1.07071,2334.3,2333.9,2.9935868]
[1726615049298,1.07071,2334.3,2333.9,2.45076]
[1726615050391,0.42834,2334.0,2333.9,2.45076]
[1726615050693,0.42834,2334.0,2333.9,2.99358345]
[1726615052604,0.42834,2334.0,2333.9,2.56522345]
[1726615053196,0.42834,2334.0,2333.9,2.56523768]
[1726615054405,0.42834,2334.0,2333.9,2.99359768]
[1726615056818,0.42834,2334.0,2333.9,2.99359715]
[1726615057015,0.42834,2334.0,2333.9,1.33523715]
[1726615057318,0.42836,2333.9,2333.8,0.4103]
[1726615057613,0.42836,2333.9,2333.8,0.95316279]
[1726615057614,0.81946,2333.9,2333.8,0.95316279]
[1726615058928,0.81946,2333.9,2333.8,0.4103]
[1726615059319,0.42839,2333.7,2333.6,1.89900821]
[1726615059518,1.49938,2333.7,2333.6,0.54288777]
[1726615059725,0.42841,2333.6,2333.5,3.2078]
[1726615059920,0.81771,2333.6,2333.5,3.75071416]
[1726615060137,1.22741,2333.6,2333.5,3.75071416]
[1726615060629,1.22741,2333.6,2333.5,3.75072439]
[1726615061235,1.22741,2333.6,2333.5,3.2078]
[1726615064636,0.42843,2333.5,2333.4,1.6491]
[1726615064825,0.42843,2333.5,2333.4,2.19202762]
[1726615065029,0.42843,2333.5,2333.4,5.39982762]
[1726615066132,0.42843,2333.5,2333.4,5.82827762]
[1726615066634,0.42842,2333.6,2333.4,5.82827762]
[1726615066835,0.42843,2333.5,2333.4,5.28535]
[1726615067033,11.78120161,2334.1,2333.4,4.8569]
[1726615067235,0.83942,2334.1,2334.0,1.23]
[1726615067429,0.42832,2334.1,2334.0,1.23]
[1726615067628,0.42832,2334.1,2334.0,2.4643]
[1726615068527,0.42832,2334.1,2334.0,1.2343]
[1726615069440,0.42832,2334.1,2334.0,0.823]
[1726615069640,0.42837,2333.8,2333.7,3.2078]
[1726615070037,1.65837,2333.8,2333.7,3.2078]
[1726615070233,2.45017,2333.8,2333.7,3.2078]
[1726615070743,3.52111,2333.8,2333.7,3.2078]
[1726615073532,2.29111,2333.8,2333.7,3.2078]
[1726615074539,0.42839,2333.7,2333.6,0.412]
[1726615074845,0.42839,2333.7,2333.6,1.642]
[1726615075042,0.42838,2333.8,2333.7,0.42838]
[1726615075544,0.42838,2333.8,2333.7,3.63618]
[1726615075843,0.42838,2333.8,2333.7,3.2078]
[1726615077035,0.42839,2333.7,2333.6,0.84041]
[1726615079543,0.42839,2333.7,2333.6,0.412]
[1726615079745,0.42839,2333.7,2333.6,1.642]
[1726615080448,0.42839,2333.8,2333.6,1.642]
[1726615080634,0.42839,2333.7,2333.6,2.0704]
[1726615084841,0.42838,2333.8,2333.7,0.42839]
[1726615085045,0.42837,2333.9,2333.7,3.63619]
[1726615085247,1.07082,2334.1,2333.7,3.63619]
[1726615085445,0.42837,2333.8,2333.7,3.2078]
[1726615085646,0.42837,2333.9,2333.7,3.63619]
[1726615085845,0.42837,2333.8,2333.7,3.2078]
[1726615086444,0.42836,2333.9,2333.7,3.63619]
[1726615086740,1.23,2334.3,2333.9,0.42835]
[1726615086741,1.07074,2334.3,2333.9,0.42835]
[1726615086940,1.07074,2334.3,2334.0,2.421]
[1726615086941,0.42833,2334.1,2334.0,2.421]
[1726615089352,0.42833,2334.1,2334.0,1.191]
[1726615090054,0.42833,2334.1,2334.0,4.3988]
[1726615090252,1.1973,2334.4,2334.0,5.6288]
[1726615090557,16.45735,2334.7,2334.3,1.65828]
[1726615090745,0.42825,2334.5,2334.4,1.212]
[1726615092355,2.05495,2334.5,2334.0,4.4378]
[1726615092554,0.42831,2334.2,2334.1,1.2352]
[1726615093647,0.42829,2334.3,2334.1,1.66352]
[1726615094460,0.4283,2334.2,2334.1,1.66352]
[1726615095455,0.42829,2334.3,2334.1,1.66352]
[1726615095654,0.42829,2334.3,2334.2,0.4283]
[1726615098157,0.42829,2334.3,2334.2,1.6583]
[1726615098559,0.42829,2334.3,2334.2,1.23]
[1726615099667,0.42829,2334.3,2334.2,1.6583]
[1726615100251,0.42829,2334.3,2334.2,1.23]
[1726615100856,0.42829,2334.3,2334.2,1.6583]
[1726615101456,0.42828,2334.4,2334.2,1.6583]
[1726615102763,0.42828,2334.3,2334.2,1.6583]
[1726615104567,0.42828,2334.4,2334.2,1.6583]
[1726615105259,0.42828,2334.4,2334.3,3.2078]
[1726615109262,0.42828,2334.3,2334.2,1.6583]
[1726615109567,0.42828,2334.3,2334.2,4.8661]
[1726615114055,0.42828,2334.3,2334.2,1.6583]
[1726615114461,0.42828,2334.3,2334.2,4.8661]
[1726615116065,1.46349,2334.6,2334.2,4.8661]
[1726615116664,0.42828,2334.3,2334.2,4.8661]
[1726615118870,0.42827,2334.4,2334.3,0.42828]
[1726615119371,0.42827,2334.4,2334.2,4.86609]
[1726615119770,0.42827,2334.4,2334.3,1.23]
[1726615119968,0.42827,2334.4,2334.3,1.65828]
[1726615120167,0.42827,2334.4,2334.3,1.23]
[1726615122572,0.42827,2334.4,2334.3,4.4378]
[1726615122973,0.8346,2334.7,2334.3,8.7218]
[1726615123166,0.4264,2334.8,2334.5,1.23]
[1726615123372,0.4264,2334.8,2334.6,0.8388]
[1726615123871,0.85459,2334.8,2334.7,1.6282]
[1726615125272,0.42819,2334.8,2334.7,1.6282]
[1726615129361,0.42821,2334.7,2334.6,3.2078]
[1726615129570,2.06291,2334.7,2334.6,3.2078]
[1726615129866,3.13344,2334.7,2334.6,3.2078]
[1726615131470,3.13344,2334.7,2334.4,0.3931]
[1726615131781,0.42825,2334.5,2334.4,0.3931]
[1726615134369,0.42825,2334.5,2334.4,0.82136]
[1726615135283,0.42825,2334.5,2334.4,1.36408325]
[1726615135776,0.42825,2334.5,2334.4,1.36408717]
[1726615135982,0.42825,2334.5,2334.4,0.93582717]
[1726615136371,0.42826,2334.4,2334.3,3.2078]
[1726615139384,0.42826,2334.4,2334.3,4.01]
[1726615141782,0.42826,2334.5,2334.3,5.24]
[1726615142085,0.42826,2334.5,2334.4,0.4016]
[1726615142474,0.4047,2334.7,2334.4,1.6316]
[1726615142780,0.42824,2334.6,2334.4,1.6316]
[1726615144487,0.42825,2334.5,2334.4,1.6316]
[1726615146183,0.4047,2334.7,2334.4,1.6316]
[1726615146388,0.42822,2334.7,2334.4,2.05985]
[1726615146688,0.42823,2334.6,2334.4,2.05985]
[1726615147082,1.88627,2334.9,2334.5,0.42823]
[1726615147283,0.42821,2334.7,2334.6,0.397]
[1726615147479,0.4282,2334.8,2334.6,2.05522]
[1726615147679,0.4282,2334.8,2334.6,5.26302]
[1726615147879,0.4282,2334.8,2334.7,0.8114]
[1726615150189,0.42818,2334.9,2334.7,1.2396]
[1726615150492,0.42817,2335.0,2334.8,0.42818]
[1726615150979,0.42817,2335.0,2334.7,2.4696]
[1726615151382,0.42817,2335.0,2334.8,0.42819]
[1726615151989,0.408,2335.2,2334.9,1.23]
[1726615152178,0.42814,2335.1,2335.0,0.814]
[1726615162387,2.052,2335.4,2335.0,2.47215]
[1726615162388,0.42813,2335.2,2335.0,2.47215]
[1726615162591,0.42813,2335.2,2335.1,1.6418]
[1726615163385,0.42813,2335.2,2335.1,0.4118]
[1726615174513,0.42811,2335.3,2335.1,5.27773]
[1726615175016,0.42811,2335.3,2335.1,4.8496]
[1726615175213,0.42809,2335.4,2335.2,0.42811]
[1726615175417,0.42809,2335.4,2335.3,1.6516]
[1726615175617,0.42809,2335.4,2335.3,2.0683]
[1726615178723,0.42809,2335.4,2335.3,0.8383]
[1726615178925,0.42812,2335.2,2335.1,4.8496]
[1726615179116,0.42812,2335.2,2335.1,3.6196]
[1726615179917,0.42812,2335.2,2335.1,4.0216]
[1726615180116,0.42812,2335.2,2335.1,5.67974]
[1726615180317,0.42811,2335.3,2335.2,0.42812]
[1726615180521,0.42809,2335.4,2335.2,0.83722]
[1726615180829,4.67644,2335.6,2335.2,0.83722]
[1726615181217,0.4281,2335.3,2335.2,0.4091]
[1726615182825,0.42812,2335.2,2335.1,4.0216]
[1726615186126,0.42812,2335.2,2335.1,5.6461]
[1726615189732,0.42812,2335.2,2335.1,2.4383]
[1726615190533,0.42812,2335.2,2335.1,5.6461]
[1726615193822,0.42812,2335.2,2335.1,6.07424]
[1726615194027,0.42812,2335.2,2335.1,5.6461]
[1726615199737,0.42812,2335.2,2335.1,6.18866969]
[1726615199939,0.42812,2335.2,2335.1,5.6461]
[1726615200444,0.42812,2335.2,2335.1,6.18866725]
[1726615200631,0.42812,2335.2,2335.1,6.61680725]
[1726615200942,0.42812,2335.2,2335.1,6.18866725]
[1726615201534,0.42812,2335.2,2335.1,5.6461]
[1726615202737,1.07022,2335.4,2334.8,4.32940252]
[1726615202738,1.6581,2335.3,2334.8,4.32940252]
[1726615202936,1.6581,2335.3,2334.9,0.54259826]
[1726615202937,0.42815,2335.0,2334.9,0.54259826]
[1726615203342,0.42817,2334.9,2334.8,4.4499]
[1726615203540,0.42817,2334.9,2334.8,4.99251675]
[1726615203942,0.42821,2334.7,2334.6,2.35160252]
[1726615204139,0.42821,2334.7,2334.6,5.61897149]
[1726615204448,0.4282,2334.8,2334.6,4.582926]
[1726615204636,0.4282,2334.8,2334.7,0.5426464]
[1726615204837,2.0576,2335.1,2334.7,2.2008564]
[1726615204838,0.42818,2334.9,2334.7,2.2008564]
[1726615205034,0.42818,2334.9,2334.8,1.34114949]
[1726615205642,0.42818,2334.9,2334.8,0.7985]
[1726615206042,0.42818,2334.9,2334.8,1.76934101]
[1726615206349,0.42818,2334.9,2334.8,0.7985]
[1726615206647,0.42818,2334.9,2334.8,1.34114272]
[1726615207344,0.42818,2334.9,2334.8,1.34114267]
[1726615209750,0.42818,2334.9,2334.8,1.34113716]
[1726615210349,0.42818,2334.9,2334.8,0.7985]
[1726615210545,0.42818,2334.9,2334.8,1.34114006]
[1726615210743,0.42818,2334.9,2334.8,1.76932971]
[1726615211252,0.42818,2334.9,2334.8,1.34113971]
[1726615212643,0.42818,2334.9,2334.8,0.7985]
[1726615213040,1.89796,2335.1,2334.7,3.2078]
[1726615213041,0.42819,2334.8,2334.7,3.2078]
[1726615213244,0.85329,2334.8,2334.7,3.75046815]
[1726615213555,0.85329,2334.8,2334.7,3.2078]
[1726615213752,0.85329,2334.8,2334.7,3.75046691]
[1726615213954,0.81808,2334.9,2334.7,4.17867691]
[1726615214154,0.81808,2334.9,2334.7,3.63601]
[1726615214645,0.42818,2334.9,2334.8,1.23]
[1726615214846,0.42817,2334.9,2334.8,2.0627]
[1726615216753,0.42817,2334.9,2334.8,2.60533666]
[1726615216945,0.42817,2334.9,2334.8,2.0627]
[1726615219952,0.42817,2334.9,2334.8,0.8327]
[1726615222455,0.42817,2334.9,2334.8,2.0627]
[1726615223753,0.82287,2335.0,2334.8,2.49089]
[1726615223960,0.3947,2335.0,2334.8,2.49089]
[1726615224259,0.82285,2335.0,2334.9,0.3982]
[1726615224654,5.10525,2335.0,2334.9,0.3982]
[1726615224964,0.82285,2335.0,2334.9,0.3982]
[1726615225456,4.71055,2335.0,2334.9,0.3982]
[1726615225857,0.42815,2335.0,2334.9,0.3982]
[1726615226243,4.71055,2335.0,2334.9,0.3982]
[1726615226655,0.42815,2335.0,2334.9,0.3982]
[1726615226860,4.71055,2335.0,2334.9,0.3982]
[1726615227255,0.42815,2335.0,2334.9,0.3982]
[1726615227558,4.71055,2335.0,2334.9,0.3982]
[1726615227755,0.42815,2335.0,2334.9,0.3982]
[1726615228258,4.71055,2335.0,2334.9,0.3982]
[1726615228466,0.42815,2335.0,2334.9,0.3982]
[1726615229653,4.41270622,2335.4,2334.9,1.6282]
[1726615229953,0.4281,2335.3,2335.2,1.23]
[1726615230153,0.4281,2335.3,2335.0,3.63595]
[1726615230154,1.9187,2335.4,2335.3,0.4192]
[1726615230565,6.2011,2335.4,2335.3,0.4192]
[1726615231665,1.9187,2335.4,2335.3,0.4192]
[1726615232370,0.42812,2335.2,2335.1,0.7956]
[1726615232666,0.42812,2335.2,2335.1,1.2201]
[1726615237065,1.23,2335.3,2335.0,3.2078]
[1726615237066,0.42814,2335.1,2335.0,3.2078]
[1726615238368,1.49849,2335.1,2335.0,3.2078]
[1726615238768,2.32729,2335.1,2335.0,3.2078]
[1726615239073,0.42815,2335.0,2334.9,0.8145]
[1726615258476,1.49861,2334.9,2334.8,0.399]
[1726615258678,3.13771,2334.9,2334.8,0.399]
[1726615262995,3.13771,2334.9,2334.7,0.4181]
[1726615262996,0.42819,2334.8,2334.7,0.4181]
[1726615275603,1.49867,2334.8,2334.7,0.4181]
[1726615275900,0.42819,2334.8,2334.7,0.4181]
[1726615276999,0.42817,2335.0,2334.7,4.8559]
[1726615277208,3.2078,2335.2,2334.8,0.4139]
[1726615277398,0.42816,2335.0,2334.9,0.4195]
[1726615277705,0.42817,2334.9,2334.8,0.4139]
[1726615277903,0.42817,2334.9,2334.8,0.8334]
[1726615280307,3.2078,2335.2,2334.8,2.0634]
[1726615280308,0.42816,2335.0,2334.8,2.0634]
[1726615281197,0.42817,2334.9,2334.8,2.0634]
[1726615281406,0.42816,2335.0,2334.8,2.0634]
[1726615281700,4.4378,2335.2,2334.8,2.0634]
[1726615281897,0.42817,2335.0,2334.8,2.0634]